Cogmind - Beta 17 @@@ ROGUE MODE // 2026.08.19 @ 04:38:14 Player: KURIIRI Result: Self-destructed Performance ------------- Evolutions (4) 2000 Regions Visited (5) 1000 Robots Destroyed (62) 310 Value Destroyed (1837) 1837 Prototype IDs (25) 500 Alien Tech Used (0) 0 Bonus (734) 734 TOTAL SCORE: 6381 Bonus ------- Registered with UFD 300 Met Optimus in HQ 500 Friendly Fire -66 Cogmind --------- Core Integrity 825/850 Matter 98/300 Energy 280/280 System Corruption 2% Temperature Warm (110) Movement Hovering (108) Ox1 Location -6/Factory Parts ------- > --- POWER (1) -------- Cooled Ion Engine (fused) > --- PROPULSION (5) --- Improved Hover Unit Airjet Cooled Airjet (fused) > --- UTILITY (7) ------ Medium Storage Unit Enhanced Optical Array Improved Signal Interpreter Core Analyzer Improved Hacking Suite System Shield > --- WEAPON (2) ------- Gatling Laser Gauss Cannon > --- INVENTORY (10) --- Compact Matter Pod (0) Deep Structural Scanner Advanced Sensor Array Advanced Sensor Array Faulty Experimental Targeting Computer Corruption Screen Improved System Restoration Module Mapping Drone Bay (3/3) Multitool Peak State ------------ > --- POWER ------------ Cooled Ion Engine > --- PROPULSION ------- Airjet Airjet Airjet Airjet Cooled Airjet > --- UTILITY ---------- Medium Storage Unit Advanced Visual Processing Unit Core Analyzer Improved Medium Armor Plating Improved Hacking Suite System Shield Mapping Drone Bay > --- WEAPON ----------- Powered Cannon > --- INVENTORY -------- Improved Hover Unit Deep Structural Scanner Gauss Cannon Multitool [Rating: 61] Favorites ----------- Power Light Ion Engine Engine Light Ion Engine Propulsion Light Treads Treads Light Treads Leg Aluminum Leg Wheel Armored Wheel Hover Unit Airjet Flight Unit VTOL Module Utility Scrap Shield Device Self-contained Transmogrifier Storage Medium Storage Unit Processor Core Analyzer Hackware Improved Hacking Suite Protection Scrap Shield Weapon Subdweller Machine Gun Energy Gun Gatling Laser Energy Cannon Beam Cannon Ballistic Gun Subdweller Machine Gun Ballistic Cannon Magnetic Acceleration Cannon Launcher Subdweller Shrapnel Launcher Special Weapon Multitool Slashing Weapon Makeshift Sword Build | -11 -10 -10 -9 -9 -6 ------- Run | Yrd Mat Sub Rec Scr Fac Slots Evolved 8 | . . . . . 8 Power . | . . . . . . Propulsion 3 | . . . . . 3 Utility 5 | . . . . . 5 Weapon . | . . . . . . Parts Attached 53 | 4 8 11 1 9 20 Power 3 | . 1 1 . 1 . Engine 3 | . 1 1 . 1 . Core . | . . . . . . Reactor . | . . . . . . Propulsion 14 | 2 1 2 . 5 4 Treads 5 | 2 1 2 . . . Leg . | . . . . . . Wheel . | . . . . . . Hover 7 | . . . . 3 4 Flight 2 | . . . . 2 . Utility 23 | 1 4 3 . 3 12 Device 8 | 1 1 . . 1 5 Storage 3 | . 2 . . 1 . Processor 4 | . . . . . 4 Hackware 3 | . . . . 1 2 Protection 5 | . 1 3 . . 1 Artifact . | . . . . . . Weapon 13 | 1 2 5 1 . 4 Energy Gun 1 | . . . . . 1 Energy Cannon 4 | . 2 1 1 . . Ballistic Gun 3 | 1 . 2 . . . Ballistic Cannon 2 | . . . . . 2 Launcher 1 | . . 1 . . . Special Weapon 1 | . . . . . 1 Impact Weapon . | . . . . . . Slashing Weapon 1 | . . 1 . . . Piercing Weapon . | . . . . . . Special Melee Weapon . | . . . . . . Unidentified Prototypes 2 | . . . . 1 1 Parts Lost 9 | . 1 4 . . 4 Power 2 | . 1 1 . . . Propulsion 3 | . . . . . 3 Utility 2 | . . 1 . . 1 Weapon 2 | . . 2 . . . Highest Loss Streak 3 | . 1 2 . . 3 To Critical Strikes . | . . . . . . Average Backups 5 | 5 9 4 4 4 8 Power . | 1 1 . . . . Propulsion 1 | 3 3 . . . . Utility 1 | . 2 1 1 1 6 Weapon 1 | 1 2 2 1 . . Tool/Special . | . . . . . . Unused Backups 18 | . 5 6 . 1 6 Power . | . . . . . . Propulsion 1 | . . 1 . . . Utility 11 | . 2 2 . 1 6 Weapon 6 | . 3 3 . . . Tool/Special . | . . . . . . Average Slot Usage (%) 75 | . 96 78 63 58 96 Engine 9 | . 11 7 12 10 6 Treads 20 | . 28 28 25 11 . Hover 5 | . . . . 8 32 Device 2 | . 6 . . 2 4 Storage 3 | . 14 . . 4 6 Processor 1 | . . . . . 19 Hackware 1 | . . . . 2 12 Protection 8 | . 7 13 12 1 1 Energy Cannon 9 | . 27 4 11 12 . Ballistic Gun 7 | . . 15 1 . . Slashing Weapon 3 | . . 7 . . . Peak Build Rating 61 | 7 10 14 23 35 61 Average Rating 19 | 6 8 11 22 25 55 On Entrance 15 | 6 7 10 14 23 34 Avg Prop Armor Cover (%) 5 | . . . . 5 . Naked Turns . | . . . . . . Heaviest Build 37 | 13 32 33 33 37 37 Greatest Support 40 | 40 40 40 40 40 40 Greatest Overweight (x) 5 | . . . . 5 1 Average Overweight (x) . | . . . . . . Largest Inventory Capacity 15 | 8 15 15 5 15 10 Average Capacity 7 | 8 13 5 5 7 10 Most Carried 12 | 6 12 11 5 10 10 Average Carried 5 | 5 9 4 4 4 8 Final Capacity 15 | 8 15 5 5 10 10 Final Carried 11 | 4 11 5 4 10 9 Transmogrified Parts 8 | . . . . 8 . Integrity Recovered 39 | . . . . 39 . Class Distribution -------------------- 80% | Mutant 12% | Subdweller-Mutant 5% | Hacker-Scout Dominant Class ---------------- Mutant | -10/Materials Mutant | -10/Subcaves Mutant | -9/Recycling Mutant | -9/Scraptown Hacker-Scout | -6/Factory Resources | -11 -10 -10 -9 -9 -6 ----------- Run | Yrd Mat Sub Rec Scr Fac Matter Collected 1381 | 191 275 423 112 113 267 Remotely . | . . . . . . Salvage Created 2052 | 11 892 698 112 . 339 Parts 142 | 5 61 50 6 . 20 Haulers Intercepted 3 | . 2 . . . 1 Recyclers Shooed . | . . . . . . Parts Field Recycled . | . . . . . . Retrieved Matter . | . . . . . . Parts Self-Destructed 9 | . . 9 . . . Prevented . | . . . . . . Parts Restored . | . . . . . . Kills | -11 -10 -10 -9 -9 -6 ------- Run | Yrd Mat Sub Rec Scr Fac Combat Hostiles Destroyed 44 | . 17 19 2 . 6 Melee 4 | . . 4 . . . Guns 12 | . . 8 . . 4 Cannons 22 | . 16 3 2 . 1 AOE 5 | . . 4 . . 1 Classes Destroyed 14 | 1 8 4 . . 1 Worker 2 | . 1 . . . 1 Builder 1 | . 1 . . . . Tunneler 4 | 1 1 . . . 2 Hauler 3 | . 2 . . . 1 Recycler 2 | . 2 . . . . Operator 2 | . 1 . . . 1 Turret 2 | . . 2 . . . Watcher 2 | . 2 . . . . Swarmer 10 | . 6 3 . . 1 Grunt 15 | . 11 2 . . 2 Sentry 4 | . . 1 2 . 1 Programmer 2 | . . . . . 2 Artisan 2 | . . 2 . . . Subdweller 13 | . . 13 . . . Best Kill Streak 7 | 1 7 6 1 . 2 Combat Bots Only 4 | . 4 4 1 . 2 Max Kills in Single Turn 3 | 1 2 3 1 . 1 Gunslinging . | . . . . . . Exploded 3 | . . 3 . . 1 Melee 1 | . . 1 . . . Uniques/NPCs Destroyed . | . . . . . . Combat | -11 -10 -10 -9 -9 -6 -------- Run | Yrd Mat Sub Rec Scr Fac Hostile Shots Fired 201 | . 58 97 8 . 38 Missed 52 | . 20 16 2 . 14 Hits 149 | . 38 81 6 . 24 Projectile 149 | . 38 81 6 . 24 AOE 2 | . . 2 . . . Critical Strikes 3 | . . 1 . . 2 Damage Taken 2551 | . 457 1547 86 . 461 Core 251 | . 35 191 . . 25 Absorbed by Shields . | . . . . . . Core Remaining (%) 54 | 100 . . . 9 . Volleys Fired 186 | 2 55 75 6 . 48 Largest 2 | 2 2 2 1 . 2 Hottest 120 | 70 120 120 40 . 120 Shots Fired 316 | 4 106 141 6 . 59 Gun 126 | 4 . 99 . . 23 Cannon 182 | . 106 34 6 . 36 Launcher 8 | . . 8 . . . Special . | . . . . . . Kinetic 139 | 2 . 107 . . 30 Thermal 177 | 2 106 34 6 . 29 Explosive . | . . . . . . Electromagnetic . | . . . . . . Robot Hit Streak 23 | 4 7 23 9 . 10 Robot Miss Streak 7 | . 4 3 . . 7 Penetration Max . | . . . . . . Secondary Targets . | . . . . . . Shots Hit Robots 200 | 4 58 99 6 . 33 Core Hits 90 | 1 28 33 2 . 26 Critical Kills 1 | . 1 . . . . Critical Parts Destroyed . | . . . . . . Critical Strikes 5 | . 1 2 . . 2 Meltdown 1 | . 1 . . . . Destroy 2 | . . 2 . . . Blast 2 | . . . . . 2 Melee Attacks 68 | . . 68 . . . Impact . | . . . . . . Slashing 68 | . . 68 . . . Piercing . | . . . . . . Sneak Attacks 3 | . . 3 . . . Combat Hostiles . | . . . . . . Follow-up Attacks . | . . . . . . Damage Inflicted 5408 | 49 1132 2716 315 . 1196 Guns 1689 | 49 . 1117 . . 523 Cannons 2312 | . 1130 418 315 . 449 Explosions 443 | . . 269 . . 174 Melee 912 | . . 912 . . . Ramming 52 | . 2 . . . 50 Kinetic 1858 | 23 . 1386 . . 449 Thermal 2486 | 26 1130 418 315 . 597 Explosive 100 | . . . . . 100 Electromagnetic . | . . . . . . Impact . | . . . . . . Slashing 912 | . . 912 . . . Piercing . | . . . . . . Highest Corruption 2 | . . . . . 2 Average Corruption 1 | . . . . . 1 Corruption Purged . | . . . . . . Corruption Blocked . | . . . . . . Effects 1 | . . . . . 1 Energy Discharges 1 | . . . . . 1 Overload Shots . | . . . . . . Overflow Damage 114 | . . 72 . . 42 Projectiles . | . . . . . . Explosions 42 | . . . . . 42 Melee 72 | . . 72 . . . Knockbacks 7 | . . . . . 7 Impact . | . . . . . . Kinetic 7 | . . . . . 7 Secondary . | . . . . . . Self-Inflicted Damage 136 | . . . . . 136 Shots 2 | . . . . . 2 Rammed 6 | . 1 . . . 5 Targets Rammed 6 | . 1 . . . 5 Kicked . | . . . . . . Crushed . | . . . . . . Highest Temperature 366 | 18 366 5 40 . 237 Average Temperature 103 | 10 119 5 22 . 68 Received Heat Transfer 588 | . 210 267 18 . 93 Effects 2 | . 2 . . . . Interference 2 | . 2 . . . . Siege Activations . | . . . . . . Martial Activations . | . . . . . . Shielding Activations . | . . . . . . Robots Disrupted . | . . . . . . Combat Hostiles . | . . . . . . Robots Corrupted . | . . . . . . Combat Hostiles . | . . . . . . Parts Fried . | . . . . . . Impact Corruptions . | . . . . . . Robots Melted 1 | . 1 . . . . Combat Hostiles 1 | . 1 . . . . Parts Melted 13 | . 9 1 . . 3 Heat Transferred 4468 | 74 2331 888 . . 1175 Parts Sabotaged . | . . . . . . Parts Stolen . | . . . . . . Parts Stripped . | . . . . . . Power Chain Reactions . | . . . . . . Alert | -11 -10 -10 -9 -9 -6 ------- Run | Yrd Mat Sub Rec Scr Fac Maximum Alert Level 1 | . 1 . . . 1 Low Security (%) 84 | 100 73 . 100 . 96 Level 1 15 | . 26 . . . 3 Level 2 . | . . . . . . Level 3 . | . . . . . . Level 4 . | . . . . . . Level 5 . | . . . . . . High Security . | . . . . . . Max Security . | . . . . . . Peak Influence 274 | 5 274 . 73 . 211 Initial 63 | . . . 63 . . Average 85 | 3 104 . 41 . 68 Influence Increases 1373 | 5 571 170 47 . 580 Destroy 0b10 Robot/C 660 | . 340 160 40 . 120 Destroy 0b10 Robot/NC 80 | 5 50 . . . 25 Destroy Leader 120 | . 78 10 . . 32 Successful Hack 54 | . 8 . 7 . 39 Select Force Hacks 30 | . 30 . . . . Disable Machine 180 | . 15 . . . 165 Destroy Structure 69 | . 5 . . . 64 Lose Combat Pursuer 180 | . 45 . . . 135 Influence Decreases 1248 | 5 349 259 180 . 455 Entered New Map 177 | . . 107 70 . . Time Decay 861 | 5 339 142 110 . 265 Lost Part 60 | . 10 10 . . 40 Purge Threat 150 | . . . . . 150 Squads Dispatched 8 | . 4 . . . 4 Investigation 5 | . 2 . . . 3 Extermination 1 | . . . . . 1 Reinforcement 2 | . 2 . . . . Assault . | . . . . . . Garrison . | . . . . . . Intercept . | . . . . . . Searches Triggered . | . . . . . . Construction Impeded . | . . . . . . Haulers Reinforced . | . . . . . . Active Scanning Responses . | . . . . . . Cargo Convoy Interrupts . | . . . . . . Stealth | -11 -10 -10 -9 -9 -6 --------- Run | Yrd Mat Sub Rec Scr Fac Distress Signals 1 | . . . . . 1 Communications Jammed . | . . . . . . Distress Signals . | . . . . . . Times Spotted 66 | . 29 22 2 . 13 Peak Tracking Total 5 | . 5 5 1 . 4 Tactical Retreats 6 | . 2 1 . . 3 Traps | -11 -10 -10 -9 -9 -6 ------- Run | Yrd Mat Sub Rec Scr Fac Traps Triggered 2 | . 2 . . . . Indirectly . | . . . . . . Trap Hack Attempts . | . . . . . . Triggered . | . . . . . . Disarmed . | . . . . . . Reprogrammed . | . . . . . . Reused . | . . . . . . Traps Extracted . | . . . . . . Installed . | . . . . . . Triggered . | . . . . . . Machines | -11 -10 -10 -9 -9 -6 ---------- Run | Yrd Mat Sub Rec Scr Fac Machines Disabled 16 | . 1 4 . . 11 Max in Single Turn 6 | . 1 2 . . 6 Garrison Access 2 | . . . . . 2 Machines Repaired 1 | . . . . . 1 Machines Dismantled . | . . . . . . Machines Sabotaged . | . . . . . . Overloaded Fab Kills . | . . . . . . Hacking | -11 -10 -10 -9 -9 -6 --------- Run | Yrd Mat Sub Rec Scr Fac Machines Accessed 20 | . 4 2 2 3 9 Terminals 9 | . 2 . 2 . 5 Fabricators 1 | . . . . . 1 Repair Stations 1 | . 1 . . . . Recycling Units 2 | . 1 . . . 1 Scanalyzers . | . . . . . . Garrison Access 2 | . . . . . 2 Total Hacks 59 | . 15 5 4 19 16 Successful 40 | . 6 5 1 19 9 Failed 18 | . 8 . 3 . 7 Catastrophic 4 | . . . 2 . 2 Database Lockouts 1 | . 1 . . . . Manual 23 | . 8 . 3 . 12 Terminals 25 | . 11 . 4 . 10 Fabricators 2 | . . . . . 2 Repair Stations 3 | . 3 . . . . Recycling Units 2 | . 1 . . . 1 Scanalyzers . | . . . . . . Garrison Access 3 | . . . . . 3 Terminal Hacks 31 | . 4 5 1 19 2 Record 22 | . . 4 . 18 . Part Schematic 1 | . . . 1 . . Robot Analysis 3 | . 3 . . . . Terminal Index 1 | . . . . . 1 Unreport Threat 1 | . . . . . 1 Locate Traps 1 | . 1 . . . . Proto ID Catalog 2 | . . 1 . 1 . Fabricator Hacks 1 | . . . . . 1 Network Status 1 | . . . . . 1 Repair Station Hacks 1 | . 1 . . . . Scan Component 1 | . 1 . . . . Recycling Unit Hacks . | . . . . . . Scanalyzer . | . . . . . . Garrison Access Hacks 2 | . . . . . 2 Seal Access 2 | . . . . . 2 Unauthorized Hacks 5 | . 1 . . . 4 Terminals 2 | . . . . . 2 Botnet 2 | . . . . . 2 Fabricators 1 | . . . . . 1 Haulers 1 | . . . . . 1 Repair Stations . | . . . . . . Recycling Units 2 | . 1 . . . 1 Tunnel 1 | . 1 . . . . Fedlink 1 | . . . . . 1 Scanalyzers . | . . . . . . Garrison Access . | . . . . . . Data Cores Recovered 1 | . . . . . 1 Used 1 | . . . . . 1 Hacking Detections 7 | . 2 . 1 . 4 Full Trace Events 2 | . . . . . 2 Feedback Events . | . . . . . . Feedback Blocked . | . . . . . . Robot Schematics Acquired . | . . . . . . Robots Built . | . . . . . . Authchips . | . . . . . . Time . | . . . . . . Total Robot Build Rating . | . . . . . . Part Schematics Acquired 1 | . . . 1 . . Parts Built . | . . . . . . Authchips . | . . . . . . Time . | . . . . . . Total Part Build Rating . | . . . . . . Part Studies Acquired . | . . . . . . Parts Repaired . | . . . . . . Time . | . . . . . . Parts Recycled . | . . . . . . Recycled Matter . | . . . . . . Retrieved Matter . | . . . . . . Retrieved Components . | . . . . . . Parts Scanalyzed . | . . . . . . Part Schematics Acquired . | . . . . . . Parts Damaged . | . . . . . . Bothacking | -11 -10 -10 -9 -9 -6 ------------ Run | Yrd Mat Sub Rec Scr Fac Used RIF Installer . | . . . . . . Robots Hacked . | . . . . . . Non-combat . | . . . . . . Combat . | . . . . . . Robot Hacks Applied . | . . . . . . Relay Couplers Released . | . . . . . . Fabnet Peak Effective % . | . . . . . . Robots Rewired . | . . . . . . Allies Hacked . | . . . . . . Hacks Repelled . | . . . . . . Allies | -11 -10 -10 -9 -9 -6 -------- Run | Yrd Mat Sub Rec Scr Fac Total Allies . | . . . . . . Largest Group . | . . . . . . Highest-Rated Group . | . . . . . . Highest-Rated Ally . | . . . . . . Initial UFD Resources 22 | . . . . . 22 Total Orders 1 | . . . . . 1 RETURN 1 | . . . . . 1 Ally Attacks . | . . . . . . Total Damage . | . . . . . . Kills . | . . . . . . Allies Corrupted . | . . . . . . Allies Melted . | . . . . . . Intel | -11 -10 -10 -9 -9 -6 ------- Run | Yrd Mat Sub Rec Scr Fac Active Infowar (turns) 852 | 12 158 . . . 682 Optics 682 | . . . . . 682 Sensors 532 | . . . . . 532 Seismic 170 | 12 158 . . . . Robot Analysis Total 3 | . 3 . . . . Derelict Logs Recovered 4 | . . 2 . 2 . Drone Launches 1 | . . . . . 1 Drone Recoveries 1 | . . . . . 1 Exploration | -11 -10 -10 -9 -9 -6 ------------- Run | Yrd Mat Sub Rec Scr Fac Turns Passed 9725 | 25 1252 4367 244 3150 687 Spaces Moved 6373 | 10 583 2421 141 2137 1081 Core 10 | . . . . 10 . Treads 4014 | 5 583 2421 141 864 . Legs 5 | 5 . . . . . Wheels 25 | . . . . 25 . Hover 1989 | . . . . 908 1081 Flight 330 | . . . . 330 . Fastest Speed 42 | 120 160 160 160 42 42 Average Speed 131 | 140 160 160 160 135 42 Slowest Speed 365 | 160 160 160 160 365 108 Overloaded Moves . | . . . . . . Propulsion Burnouts . | . . . . . . Robots Hopped . | . . . . . . Potential Cave-ins 1 | . . 1 . . . Cave-ins Triggered . | . . . . . . Exploration Rate (%) 54 | 2 80 94 33 88 27 Regions Visited 5 Branch Regions 3 Pre-discovered Areas 8 | . 1 1 . 6 . Known Exits Taken 1 | . . . . 1 . Unknown Exits Taken 4 | 1 1 1 1 . . Scrap Searched 15 | . . 7 . 8 . Spaces Dug 39 | . . 31 . . 8 Terrain Destroyed 195 | . . 130 . . 65 Melee 29 | . . 29 . . . Projectile 17 | . . 2 . . 15 AOE 149 | . . 99 . . 50 Terrain Rammed . | . . . . . . Walls Destroyed . | . . . . . . Machines Disabled . | . . . . . . Actions | -11 -10 -10 -9 -9 -6 --------- Run | Yrd Mat Sub Rec Scr Fac Total 7305 | 17 797 2709 156 2386 1240 Wait 495 | . 132 81 6 222 54 Move 6368 | 9 582 2420 140 2136 1081 Hop . | . . . . . . Pick Up 40 | . 11 7 1 10 11 Fast Attach 23 | 1 3 7 . 7 5 Attach 17 | 2 . 2 1 2 10 Detach 2 | . . 1 . . 1 Swap 28 | 1 5 9 . 1 12 Drop 47 | 2 8 19 2 8 8 Fire 186 | 2 55 75 6 . 48 Melee 68 | . . 68 . . . Ram 5 | . . . . . 5 Kick . | . . . . . . Crush 1 | . 1 . . . . Escape Stasis . | . . . . . . Rewire . | . . . . . . Trap . | . . . . . . Miscellaneous 25 | . . 20 . . 5 Route ------- -11/Scrapyard -10/Materials (discovered 5 exits: [*Mat x2] / [*Min x2] / *Sub) -10/Subcaves (discovered 3 exits: [*Mat x2] / *Rec) -9/Recycling (discovered 2 exits: [*Fac] / *Scr) -9/Scraptown (discovered 2 exits: *Fac x2) -6/Factory (discovered 3 exits: [*Fac] / Low x2) History --------- Turn | Location | Event 9 | -11/Scrapyard | Discovered new exit (range 3) 26 | -11/Scrapyard | Entered Materials 31 | -10/Materials | Central database locked down 179 | -10/Materials | Discovered new exit (range 14) 300 | -10/Materials | Build established: Mutant 470 | -10/Materials | Discovered new exit (range 15) 717 | -10/Materials | Discovered new exit (range 14) 1267 | -10/Materials | Discovered new exit (range 10) 1272 | -10/Materials | Discovered new exit (range 6) 1278 | -10/Materials | Entered Subcaves 1279 | -10/Subcaves | Approached by a straggling Scientist 1283 | -10/Subcaves | Discovered new exit (range 9) 1361 | -10/Subcaves | Shifting Twisted Machinery released Mak. Sword 1364 | -10/Subcaves | Shifting Twisted Machinery released Scrap Shield 2225 | -10/Subcaves | Visited 4L-MR0's lab 3018 | -10/Subcaves | Learned Materials emergency access door positions 3101 | -10/Subcaves | A swath of the cavern ceiling suddenly collapsed 3246 | -10/Subcaves | Core integrity fell below 50% 3308 | -10/Subcaves | Build established: Subdweller-Mutant 3315 | -10/Subcaves | A swath of the cavern ceiling suddenly collapsed 3380 | -10/Subcaves | Discovered new exit (range 10) 4224 | -10/Subcaves | Ambushed by Subdweller buried in earth 4235 | -10/Subcaves | Core integrity fell below 20% 4258 | -10/Subcaves | Build established: Mutant 4627 | -10/Subcaves | Shifting Twisted Machinery released Spk. Treads 4633 | -10/Subcaves | Visited Clippyterm 4637 | -10/Subcaves | Learned location of Extension (-5) 4637 | -10/Subcaves | Learned Factory garrison access intel 4666 | -10/Subcaves | Learned location of 1 exit from Materials 4695 | -10/Subcaves | Shifting Twisted Machinery released Multitool 4709 | -10/Subcaves | Shifting Twisted Machinery released Sub. Shrapnel Launcher 5124 | -10/Subcaves | Found Powered Cannon 5134 | -10/Subcaves | Found Prototype Device 5494 | -10/Subcaves | Shifting Twisted Machinery released Sub. Shrapnel Launcher 5567 | -10/Subcaves | Ambushed by Subdweller buried in earth 5596 | -10/Subcaves | Discovered new exit (range 15) 5645 | -10/Subcaves | Entered Recycling 5656 | -9/Recycling | Attached Powered Cannon, gained temporary slot: Power 5833 | -9/Recycling | Discovered new exit (range 8) 5849 | -9/Recycling | Scanned before Scraplab entrance 5873 | -9/Recycling | Entered Scraplab 5886 | -9/Recycling | Discovered new exit (range 2) 5889 | -9/Recycling | Entered Scraptown 6144 | -9/Scraptown | Scanned Subdweller tech in exchange for log data 6149 | -9/Scraptown | Learned 8 Research zone layouts 6150 | -9/Scraptown | Learned location of Quarantine (-2) 6225 | -9/Scraptown | Visited Fellowship of the Rings 6248 | -9/Scraptown | Visited UFD Registry 6248 | -9/Scraptown | Registered with UFD as "Gearbucket" 6261 | -9/Scraptown | Visited Bundlers 6381 | -9/Scraptown | Delivered Scrap Shield to a Scientist 6608 | -9/Scraptown | Guru changed UFD alias to "Gausssys" 6657 | -9/Scraptown | Discovered new exit (range 11) 6715 | -9/Scraptown | Visited Cyclists 6726 | -9/Scraptown | Entered Cyclist Reading Room 6781 | -9/Scraptown | Visited Shadow of the Wyrm 6797 | -9/Scraptown | Visited Symbiants 6809 | -9/Scraptown | Visited Supply Room 6875 | -9/Scraptown | Visited DA-N13 Charitable Foundation 6881 | -9/Scraptown | Found DCF Scrap (27 items) 6947 | -9/Scraptown | Visited Cartography Club 6976 | -9/Scraptown | Visited Junk Repository 7021 | -9/Scraptown | Visited Chapter 10 7043 | -9/Scraptown | Visited Curators Association 7080 | -9/Scraptown | Visited Abandonware Association 7101 | -9/Scraptown | Learned abandonware demo "REPAIR.EXE" 7136 | -9/Scraptown | Visited Supply Room 7166 | -9/Scraptown | Visited A0-MCA Data Center 7176 | -9/Scraptown | Given a B- rating by A0-MCA 7201 | -9/Scraptown | Visited Scrap Suit Storage 7224 | -9/Scraptown | Visited Science Guys 7509 | -9/Scraptown | Identified Sfc. Transmogrifier 7594 | -9/Scraptown | Learned location of Lower Caves (-7) 7594 | -9/Scraptown | Learned location of Proximity Caves (-6) 7594 | -9/Scraptown | Learned location of Warlord (-5) 7594 | -9/Scraptown | Learned location of Archives (-5) 7594 | -9/Scraptown | Learned 12 Materials zone layouts 7594 | -9/Scraptown | Learned 12 Factory zone layouts 7594 | -9/Scraptown | Learned 8 Upper Caves zone layouts 7594 | -9/Scraptown | Learned 12 Upper Caves zone layouts 7594 | -9/Scraptown | Learned Storage emergency access door positions 7594 | -9/Scraptown | Learned location of 2 exits from Lower Caves 7594 | -9/Scraptown | Learned location of 3 exits from Upper Caves 7594 | -9/Scraptown | Learned 20 Upper Caves zone layouts 7594 | -9/Scraptown | Identified exit to Factory 7598 | -9/Scraptown | Found Deep Structural Scanner 8978 | -9/Scraptown | Met Optimus 8978 | -9/Scraptown | Accepted into 0bPrime 9039 | -9/Scraptown | Entered Factory 9039 | -6/Factory | Evolved 8 slots: Propulsion x3, Utility x5 9040 | -6/Factory | Identified exit to Lower Caves 9042 | -6/Factory | Loaded intel: 4 garrison access locations 9189 | -6/Factory | Loaded intel: 8 recycling unit locations 9216 | -6/Factory | Found Prototype Processor 9219 | -6/Factory | Discovered new exit (range 12) 9363 | -6/Factory | Build established: Hacker-Scout 9726 | -6/Factory | Self-destructed Last Messages --------------- 09685_ Acquired 55 matter. 09702_ System corrupted: Energy discharge (-58). 09707_ P-60 Hacker knocked back. 09710_ Destroyed Shock Rifle. 09717_ Y-54 Guardian Gatling Laser blasted off. 09717_ Imp. Heat Sink melted. 09717_ Imp. Deuterium Engine melted. 09717_ Y-54 Guardian destroyed. 09720_ Slug penetrates P-60 Hacker. 09720_ P-60 Hacker Mic. Nuclear Core blasted off. 09720_ P-60 Hacker knocked back. 09720_ P-60 Hacker destroyed. 09724_ Fusion Modulator explodes. 09724_ Imp. Medium Armor Plating destroyed. 09724_ Destroyed Imp. Medium Armor Plating. 09724_ Airjet destroyed. 09724_ Destroyed Airjet. 09724_ Airjet destroyed. 09724_ Destroyed Airjet. Map ----- +----------------------------------------------------+ | #??????????????# # #??????#??????????? | | #??????????????# # #??????#??????????? | | #????########### # #??????#??????????? | | #????# # # #??????#??????????? | | #????# # # #??????#??????????? | | #????# """ """ # # #??????#??????????? | | #????# """ """ # # #?????????????????# | | #????# """ """ # # #?????????????????# | | #????# # + #?????????????????# | | #????# = # # #?????????????????# | | A#????# # # #?????????????????? | | ##########/############ ########??????????? | | ! R ??????????? | | ??????????? | | ??????????? | | R """"??????????? | | """"??????????? | | ##########+#;##;; ;;#### """"??????????? | | #?????# ; ;##?# """"??????????? | | A #?????# ; ; #?# """"??????????? | | #?????# ; ;#??# """"?????"""??? | | #?????# ; ;#??# ?????"Y???? | | #????## ;#??# ?????"""??? | | #???### ; ;#??# #??????????? | | ########!# ; ;#???????????????????? | | ## # =[ @ ;#???????????????????? | | =%## ! ####;;;;;###??????????????????" | | %%%###########??### ###?????????????????????? | | #?????????????? ????????????????####???? | | #????????????? ???????????????# ?### | | """ """ #????????????+ ??????????????# # | | """ """ #????????????# #??????????????# [ # | | """ """ #????????????# #??????????????# + | | "" #????????????## ##??????????????# # | | "" #?????????????# #???????????????# # | | #?????????????# #???????????????# ?## | | ##########????????????# #???????????????# ??# | | ! #????????????# #???????????????#! ???# | | #????????????# #???????????????###???# | | #????????????# #?????????????????????# | | #??#?????????# #?????????????????????# | | #????????????# #?????????????????????# | | ##???????????# #?????????????????????# | | #????????????# #?????????????????????# | | #????????????? ????????????#+????????# | | ###??????????? #???????????# ????????# | | #????????????? #????????#?## #??###### | | #????????????# ########## # ### | | ##???????????# # " | | ########+############## # | +----------------------------------------------------+ Best States ------------- Heat Dissipation 39 Energy Generation 14 Energy Capacity 280 Matter Stores 300 Matter Capacity 300 Sight Range 22 Robot Scan Range 16 Terrain Scan Density 10 Armor Coverage 800 Evasion (%) 61 Core Analysis 6 Recoil Reduction 2 Offensive Hacking 12 Defensive Hacking 10 Item Schematics ----------------- Hcp. Storage Unit | -9/Recycling | Hacked Robot Schematics ------------------ None Fabricated ------------ Nothing Repaired ---------- Nothing Studied --------- None Alien Tech Used ----------------- None Achievements -------------- None Challenges ------------ None Game ------ Seed PartitionMultireflexShooter Manual? 0 Play Time 00:46:06 Cumulative 641.9 hours Start 2026.08.19 @ 03:25:29 End 2026.08.19 @ 04:38:14 Sessions 3 Manual Loads 0 Difficulty Rogue Special Mode None Game No. 568 Rogue 532 Adventurer 36 Explorer 0 Win Type - Total 8 Types 2/2/0/1/1/0/0/2/0/0 Lore% 85 Gallery% 74 Achievement% 68 Wizard Run 0 Options --------- Layout 2 ASCII 0 Keyboard 0 Movement Numpad Keybinds 0 Fullscreen 1 Font 48/Smallcaps Map View 50x44 Zoom Use 0% Tactical HUD 1 Map Filters NONE Filters NONE Steam 1 RUN: da0d6c96-f6c9-46d4-932a-05f37e8ffa09